bitfinex-derivatives/quotes_ETHF0:USTF0_20241207
["timestamp","ask_amount","ask_price","bid_price","bid_amount"]
[1733580795713,0.684,3979.9,3979.3,0.3802]
[1733580795909,0.684,3979.9,3979.3,0.55592]
[1733580795910,0.17571,3979.6,3979.3,0.55592]
[1733580796111,0.684,3979.9,3979.3,0.3802]
[1733580796312,0.1757,3979.8,3979.4,0.17572]
[1733580796504,0.1757,3979.8,3979.3,0.3802]
[1733580796505,0.1757,3979.8,3979.5,0.17571]
[1733580796712,0.684,3979.8,3979.5,3.2078]
[1733580796909,0.8597,3979.8,3979.7,0.1757]
[1733580797111,0.1757,3979.9,3979.7,0.1757]
[1733580797308,1.96397635,3980.0,3979.6,0.4083]
[1733580797616,0.1757,3979.8,3979.7,0.1757]
[1733580797914,0.1757,3979.8,3979.7,3.91679018]
[1733580798120,0.1757,3979.8,3979.6,4.50080018]
[1733580798422,0.1757,3979.7,3979.6,4.50080018]
[1733580798914,0.1757,3979.7,3979.6,4.32509018]
[1733580799215,0.1757,3979.7,3979.6,0.4083]
[1733580800315,0.1757,3979.7,3979.6,0.59520193]
[1733580800618,0.1757,3979.7,3979.6,0.41949193]
[1733580800818,0.1757,3979.7,3979.6,0.59520193]
[1733580801021,0.1757,3979.7,3979.6,0.41949193]
[1733580801713,1.96397635,3980.0,3979.6,0.41949193]
[1733580802017,0.1757,3979.7,3979.6,0.59519193]
[1733580802516,0.1757,3979.7,3979.6,0.41949193]
[1733580803220,0.1757,3979.7,3979.6,0.59520193]
[1733580803720,0.1757,3979.7,3979.6,0.41949193]
[1733580803920,0.1757,3979.8,3979.6,0.41949193]
[1733580804212,1.96397635,3980.0,3979.6,0.41949193]
[1733580804420,0.1757,3979.7,3979.6,0.41949193]
[1733580806516,0.1757,3979.7,3979.6,0.59520193]
[1733580806717,0.1757,3979.7,3979.6,0.41949193]
[1733580808424,0.5604,3979.7,3979.6,0.41949193]
[1733580809726,0.1757,3979.7,3979.6,0.41949193]
[1733580814036,0.8677,3979.7,3979.6,0.41949193]
[1733580816025,5.17177635,3980.2,3979.6,0.41949193]
[1733580816232,0.8677,3979.9,3979.8,0.1757]
[1733580816633,0.1757,3979.9,3979.8,0.1757]
[1733580817131,0.86769,3980.0,3979.9,0.17569]
[1733580818632,0.43912,3981.0,3979.9,8.70223304]
[1733580818833,0.17567,3980.4,3980.3,4.10858685]
[1733580819029,0.17567,3980.4,3980.3,0.17567]
[1733580819225,0.43912,3981.0,3980.3,3.93291685]
[1733580819429,5.55207635,3981.1,3980.4,4.10858685]
[1733580819430,0.17567,3980.6,3980.4,4.10858685]
[1733580819638,0.17567,3980.6,3980.5,0.17567]
[1733580819832,5.55207635,3981.1,3980.5,3.93291685]
[1733580820031,0.17566,3980.6,3980.5,4.10858685]
[1733580820336,5.55207635,3981.1,3980.5,3.93291685]
[1733580820525,5.17177635,3981.1,3980.5,3.93291685]
[1733580820725,5.17177635,3981.1,3980.7,3.93291685]
[1733580820926,5.34741635,3981.1,3981.0,0.17565]
[1733580821332,0.17565,3981.0,3980.9,0.17565]
[1733580821638,5.17177635,3981.1,3981.0,0.17565]
[1733580821639,5.34741635,3981.1,3981.0,0.17565]
[1733580822334,1.96397635,3981.1,3981.0,0.17565]
[1733580822533,0.692,3981.4,3980.8,4.74521685]
[1733580822728,1.96397635,3981.5,3980.9,3.93291685]
[1733580823034,2.13960635,3981.5,3981.4,0.17563]
[1733580823234,0.692,3981.6,3981.5,0.17562]
[1733580823745,0.86761,3981.8,3981.4,0.39]
[1733580823933,0.692,3981.8,3981.7,0.17561]
[1733580824235,0.86761,3981.8,3981.7,0.17561]
[1733580824534,0.692,3981.8,3981.7,0.17561]
[1733580824736,5.17177635,3982.3,3981.4,4.32291685]
[1733580825034,0.692,3982.2,3981.7,3.93291685]
[1733580825236,0.692,3982.2,3981.8,0.3944]
[1733580825448,0.8676,3982.2,3982.1,0.1756]
[1733580825635,0.692,3982.2,3982.1,0.1756]
[1733580826035,1.96397635,3982.3,3982.2,0.17559]
[1733580826429,0.692,3982.4,3982.3,0.17559]
[1733580827232,0.17558,3982.6,3982.1,0.4046]
[1733580827435,3.61,3982.9,3982.6,0.17558]
[1733580827436,0.691,3982.7,3982.6,0.17558]
[1733580827736,0.691,3982.7,3982.1,0.4046]
[1733580827737,0.17556,3983.1,3982.4,3.2078]
[1733580828035,0.691,3983.1,3983.0,0.17555]
[1733580828236,0.691,3983.1,3982.4,3.2078]
[1733580828438,2.65497635,3983.1,3982.4,3.2078]
[1733580828735,0.17556,3983.0,3982.2,0.17559]
[1733580828936,0.17557,3982.7,3982.1,0.4046]
[1733580829137,2.65497635,3983.1,3982.1,0.4046]
[1733580829138,0.17557,3982.9,3982.1,0.4046]
[1733580829440,0.691,3983.1,3982.4,3.2078]
[1733580829747,0.691,3983.1,3983.0,0.17556]
[1733580829928,0.17555,3983.2,3983.0,0.17556]
[1733580830132,4.07435,3983.3,3983.1,0.57185]
[1733580830357,3.2078,3983.3,3983.1,0.3963]
[1733580830537,3.2078,3983.3,3983.2,0.56465]
[1733580831041,0.25115089,3983.8,3983.2,0.3891]
[1733580831042,0.688,3983.6,3983.2,0.3891]
[1733580831337,1.96397635,3983.9,3983.2,0.3891]
[1733580831338,0.688,3983.7,3983.2,0.3891]
[1733580831536,1.96397635,3983.9,3983.2,0.3891]
[1733580831838,0.17552,3983.8,3983.5,0.17553]
[1733580832134,2.65197635,3983.9,3983.2,0.3891]
[1733580832135,0.17554,3983.4,3983.2,0.3891]
[1733580832346,2.65197635,3983.9,3983.2,0.3891]
[1733580832536,0.17554,3983.3,3983.2,0.3891]
[1733580833136,3.2078,3983.6,3983.2,0.3891]
[1733580833337,0.17554,3983.3,3983.2,0.3891]
[1733580834440,3.2078,3983.6,3983.1,0.3963]
[1733580834647,0.57615,3983.2,3983.1,0.3963]
[1733580835437,3.2078,3983.6,3983.1,0.3963]
[1733580835831,0.86353,3983.7,3983.5,0.17553]
[1733580836043,0.86353,3983.7,3983.1,0.3963]
[1733580836044,0.86353,3983.7,3983.6,0.4099]
[1733580836742,0.688,3983.7,3983.1,0.3963]
[1733580837038,0.17555,3983.2,3983.1,0.3963]
[1733580837643,0.17556,3983.0,3982.9,0.4099]
[1733580838537,0.17556,3982.9,3982.4,3.6151]
[1733580838736,0.17556,3982.9,3982.7,0.17557]
[1733580838940,3.2078,3983.3,3982.5,0.4025]
[1733580839133,0.17556,3983.1,3982.5,0.4025]
[1733580839339,3.2078,3983.3,3982.5,0.4025]
[1733580839533,0.17555,3983.1,3982.5,0.4025]
[1733580839743,0.17556,3983.0,3982.8,0.17556]
[1733580839941,3.2078,3983.3,3982.5,0.4025]
[1733580840142,0.688,3983.6,3982.5,0.4025]
[1733580840345,0.17554,3983.4,3983.2,0.17555]
[1733580840542,0.17554,3983.4,3983.3,0.7836]
[1733580841448,0.17554,3983.4,3983.3,0.95914]
[1733580842040,0.688,3983.6,3983.3,0.7836]
[1733580842243,0.17554,3983.5,3983.3,0.95914]
[1733580842551,0.17554,3983.5,3983.4,0.17554]
[1733580842846,0.3963,3983.8,3983.3,0.7836]
[1733580842847,0.86353,3983.7,3983.6,0.17553]
[1733580843043,0.17553,3983.6,3983.5,0.17553]
[1733580843343,0.17554,3983.4,3983.3,0.7836]
[1733580843944,0.688,3983.7,3982.8,3.38336]
[1733580843945,0.17556,3983.0,3982.8,3.38336]
[1733580844147,0.17556,3983.1,3982.9,0.4003]
[1733580844338,0.757,3983.7,3982.9,0.4003]
[1733580844539,0.688,3983.7,3982.9,0.4003]
[1733580845140,0.17553,3983.6,3983.4,0.17554]
[1733580845339,0.17553,3983.6,3983.5,0.3835]
[1733580846147,0.17556,3983.0,3982.9,0.4003]
[1733580847851,0.55946,3983.0,3982.9,0.4003]
[1733580848352,0.687,3983.1,3983.0,0.17556]
[1733580848544,0.687,3983.1,3982.9,0.4003]
[1733580848545,0.17556,3983.0,3982.9,0.57586]
[1733580849146,0.86256,3983.1,3983.0,0.17556]
[1733580849356,0.687,3983.1,3983.0,0.17556]
[1733580849654,0.17555,3983.3,3983.2,0.17555]
[1733580850149,1.0709,3983.5,3983.0,3.2078]
[1733580850344,0.687,3983.5,3983.4,0.17554]
[1733580850954,0.86254,3983.5,3983.4,0.17554]
[1733580851158,0.687,3983.5,3983.0,3.2078]
[1733580851456,0.17555,3983.1,3983.0,3.2078]
[1733580851652,3.8948,3983.6,3983.0,3.2078]
[1733580851856,0.17555,3983.3,3983.2,0.17555]
[1733580853451,0.17555,3983.2,3983.1,0.17555]
[1733580853646,0.17555,3983.1,3983.0,3.38336]
[1733580854052,0.17555,3983.1,3983.0,3.2078]
[1733580856161,0.43886,3983.5,3982.9,0.4003]
[1733580856370,0.17556,3983.0,3982.9,0.4003]
[1733580856665,0.17556,3983.0,3982.9,0.57586]
[1733580857259,0.17556,3983.0,3982.9,0.4003]
[1733580857661,0.17556,3983.0,3982.9,0.57586]
[1733580858269,0.17556,3983.1,3983.0,0.17556]
[1733580858469,0.17555,3983.2,3983.0,0.17556]
[1733580858668,3.8948,3983.6,3982.9,0.4003]
[1733580858870,3.2078,3983.6,3982.9,0.4003]
[1733580859073,0.17556,3983.1,3983.0,0.17556]
[1733580859664,0.17556,3983.0,3982.9,0.57586]
[1733580860466,0.17556,3983.1,3982.9,0.4003]
[1733580860662,0.687,3983.5,3982.9,0.4003]
[1733580860869,0.17556,3983.0,3982.9,0.4003]
[1733580861260,0.43886,3983.4,3982.6,3.5913]
[1733580861261,2.54252495,3983.3,3982.6,3.5913]
[1733580861559,0.17557,3982.7,3982.6,0.55908]
[1733580861763,0.17557,3982.7,3982.6,0.3835]
[1733580862574,0.17557,3982.7,3982.6,0.55908]
[1733580862868,0.17557,3982.8,3982.7,0.17557]
[1733580863273,0.85856,3982.9,3982.8,0.17557]
[1733580863571,0.3945,3983.3,3982.6,0.3835]
[1733580863870,0.85855,3983.3,3983.2,0.17555]
[1733580864770,0.683,3983.3,3982.8,3.2078]
[1733580864970,0.85855,3983.3,3983.2,0.17555]
[1733580865768,0.683,3983.3,3983.2,0.17555]
[1733580866375,0.683,3983.3,3983.2,4.8770341]
[1733580867170,0.683,3983.3,3983.2,6.23256629]
[1733580867971,0.683,3983.3,3983.2,12.13194157]
[1733580868273,3.38333,3983.6,3983.5,0.17554]
[1733580868274,3.2078,3983.6,3983.5,0.17554]
[1733580868472,0.17553,3983.8,3983.7,0.17553]
[1733580868662,0.17553,3983.8,3983.7,4.11389976]
[1733580869068,0.17552,3983.9,3983.8,0.17552]
[1733580869268,0.17552,3983.9,3983.8,4.11388976]
[1733580869464,0.17552,3983.9,3983.8,5.86890904]
[1733580869868,0.17552,3983.9,3983.8,4.51396226]
[1733580870373,1.062,3984.2,3984.1,0.17551]
[1733580870576,0.683,3984.2,3984.1,4.11739841]
[1733580870776,0.8585,3984.2,3984.1,11.38073041]
[1733580871076,3.2078,3984.5,3984.1,11.38073041]
[1733580871077,0.3801,3984.6,3984.1,11.20522041]
[1733580871279,0.1755,3984.3,3984.2,11.38072041]
[1733580871477,0.3801,3984.6,3984.2,5.29733163]
[1733580871675,0.17549,3984.5,3984.4,6.08337878]
[1733580871871,0.17549,3984.5,3984.4,11.3806786]
[1733580872174,0.17549,3984.5,3984.4,11.38477045]
[1733580872376,0.3801,3984.6,3984.5,0.17549]
[1733580872377,0.55559,3984.6,3984.5,0.17549]
[1733580872575,0.682,3984.7,3984.5,5.47278982]
[1733580872768,0.85748,3984.7,3984.6,4.35102707]
[1733580873173,0.682,3984.7,3984.6,0.58519]
[1733580873473,0.85748,3984.7,3984.6,0.58519]
[1733580873674,0.682,3984.7,3984.6,0.58519]
[1733580874475,3.2078,3985.1,3984.6,0.4097]
[1733580874681,3.2078,3985.1,3984.6,4.35102707]
[1733580874881,0.17548,3984.9,3984.8,0.17548]
[1733580875177,0.17548,3984.8,3984.7,0.17548]
[1733580875383,0.17548,3984.9,3984.8,0.17547]
[1733580875577,0.17547,3985.0,3984.9,0.17547]
[1733580875782,2.88327,3985.1,3984.9,0.17547]
[1733580876276,0.17547,3985.0,3984.9,0.17547]
[1733580876479,2.88327,3985.1,3984.6,0.4097]
[1733580876679,0.17547,3984.9,3984.8,0.17547]
[1733580877075,3.05874,3985.1,3985.0,0.17547]
[1733580877280,0.17548,3984.9,3984.8,0.17548]
[1733580877475,2.88327,3985.1,3984.6,0.4097]
[1733580877476,0.17548,3984.7,3984.6,0.4097]
[1733580877677,2.88327,3985.1,3984.6,0.4097]
[1733580877875,0.17548,3984.9,3984.8,0.17547]
[1733580878073,2.88327,3985.1,3984.6,0.4097]
[1733580878277,0.17547,3985.0,3984.7,0.17548]
[1733580878476,2.88327,3985.1,3984.6,0.4097]
[1733580878784,0.17547,3985.0,3984.6,0.4097]
[1733580878978,0.17548,3984.8,3984.6,0.4097]
[1733580879180,0.17548,3984.7,3984.6,0.4097]
[1733580879575,0.17548,3984.7,3984.6,0.58519]
[1733580881188,0.17547,3985.1,3985.0,0.17547]
[1733580881782,0.17546,3985.3,3985.2,0.17546]
[1733580882586,0.17546,3985.2,3985.1,0.17546]
[1733580883883,0.17546,3985.2,3984.8,0.3961]
[1733580883884,0.17545,3985.5,3985.4,0.17545]
[1733580884082,0.17544,3985.6,3985.5,0.17544]
[1733580884681,0.17546,3985.2,3985.0,0.17547]
[1733580884987,0.17546,3985.2,3985.1,0.17546]
[1733580886089,0.17547,3984.9,3984.8,3.2078]
[1733580886693,0.17547,3984.9,3984.4,5.90530342]
[1733580886694,3.2078,3985.3,3984.4,5.90530342]
[1733580886989,0.17548,3984.7,3984.6,3.38328]
[1733580887782,0.17548,3984.8,3984.7,0.17548]
[1733580888188,0.17548,3984.8,3984.6,3.2078]
[1733580888189,0.17548,3984.9,3984.8,0.17547]
[1733580888487,3.2078,3985.3,3984.9,0.17547]
[1733580888686,0.17547,3985.1,3985.0,0.57067]
[1733580888881,0.17547,3985.1,3985.0,0.3952]
[1733580889284,0.17546,3985.3,3985.2,0.17546]
[1733580889491,0.17546,3985.2,3985.1,0.17546]
[1733580889679,0.83051,3985.7,3985.0,3.603]
[1733580889885,0.17546,3985.3,3985.2,0.17546]
[1733580890586,0.3919,3985.7,3985.0,3.603]
[1733580890790,0.3919,3985.7,3985.1,0.17546]
[1733580890791,0.17546,3985.2,3985.1,0.17546]
[1733580891380,0.17546,3985.1,3985.0,3.38327]
[1733580891985,0.17546,3985.1,3985.0,3.2078]
[1733580892180,0.17546,3985.1,3985.0,3.38327]
[1733580893089,0.17546,3985.3,3985.2,0.17546]
[1733580893487,0.17546,3985.2,3985.1,0.17546]
[1733580893682,0.17546,3985.1,3985.0,3.38327]
[1733580897990,0.17546,3985.1,3985.0,3.2078]
[1733580898491,0.17548,3984.7,3984.6,3.2078]
[1733580901303,0.677,3984.7,3984.0,3.2078]
[1733580901499,0.17551,3984.1,3984.0,3.2078]
[1733580901797,0.17551,3984.1,3984.0,3.38331]
[1733580902496,0.17551,3984.1,3984.0,3.2078]
[1733580904202,0.17552,3983.9,3983.8,0.8002]
[1733580904396,0.17552,3983.9,3983.8,0.3908]
[1733580905697,0.17552,3983.9,3983.4,0.58494]
[1733580905698,0.17552,3983.9,3983.4,0.4094]
[1733580905885,0.17553,3983.5,3983.4,0.7833]
[1733580906490,0.17553,3983.5,3983.4,0.3739]
[1733580906799,0.17554,3983.4,3983.3,3.2078]
[1733580907098,0.55614,3983.4,3983.3,3.2078]
[1733580909807,0.3806,3983.4,3983.0,0.7715]
[1733580910002,0.17555,3983.1,3983.0,0.7715]
[1733580911909,0.17555,3983.1,3983.0,0.3938]
[1733580913001,0.677,3983.2,3982.6,0.393]
[1733580913204,0.17557,3982.7,3982.6,0.8061]
[1733580914007,3.2078,3983.3,3982.6,0.8061]
[1733580914203,1.96477797,3983.9,3982.8,5.17257797]
[1733580914204,0.677,3983.8,3982.8,5.17257797]
[1733580914404,3.2078,3983.9,3983.2,3.2078]
[1733580914605,3.2078,3983.9,3983.3,0.7889]
[1733580914805,0.17553,3983.7,3983.3,0.7889]
[1733580915111,0.17553,3983.6,3983.5,0.17553]
[1733580915299,0.17554,3983.5,3983.4,0.17554]
[1733580915505,3.2078,3983.9,3983.3,0.7889]
[1733580916009,0.17554,3983.5,3983.4,0.17554]
[1733580916207,0.17552,3983.8,3983.3,0.96444]
[1733580916401,3.2078,3983.9,3983.3,0.96444]
[1733580916602,0.17554,3983.4,3983.3,0.7889]
[1733580917203,3.2078,3983.9,3983.3,0.7889]
[1733580917617,0.17554,3983.5,3983.4,0.17554]
[1733580918116,3.2078,3983.9,3983.3,0.7889]
[1733580918117,0.17554,3983.4,3983.3,0.7889]
[1733580920314,0.17554,3983.4,3983.3,0.4131]
[1733580920713,0.677,3983.4,3982.8,3.5981]
[1733580920912,0.17556,3982.9,3982.8,3.5981]
[1733580921115,0.17556,3982.9,3982.8,3.2078]
[1733580923010,0.17556,3982.9,3982.8,3.38337]
[1733580923203,0.3997,3983.3,3982.8,3.2078]
[1733580923611,0.3997,3983.3,3982.9,0.3795]
[1733580923816,0.17556,3983.0,3982.9,0.3795]
[1733580926308,0.17556,3983.0,3982.9,0.55506]
[1733580926810,0.17556,3983.0,3982.9,0.3795]
[1733580928015,0.3997,3983.3,3982.9,0.3795]
[1733580928212,3.2078,3983.5,3982.9,0.3795]
[1733580928418,0.675,3983.4,3982.9,0.3795]
[1733580928614,0.17556,3983.0,3982.9,0.3795]
[1733580929804,0.43887,3983.3,3982.8,3.2078]
[1733580930006,0.17556,3982.9,3982.8,3.2078]
[1733580930408,0.17557,3982.6,3982.5,0.4061]
[1733580931515,1.0559,3982.8,3982.5,0.4061]
[1733580931709,1.0559,3982.8,3982.7,0.17557]
[1733580931710,1.23147,3982.8,3982.7,0.17557]
[1733580931911,1.0559,3982.8,3982.7,0.17557]
[1733580932110,0.675,3982.8,3982.7,0.17557]
[1733580932708,0.675,3983.2,3982.7,0.3803]
[1733580932915,0.17557,3982.8,3982.7,0.55587]
[1733580933316,0.17557,3982.8,3982.7,0.3803]
[1733580938322,0.17557,3982.6,3982.5,0.4061]
[1733580939122,0.17557,3982.6,3982.5,0.58168]
[1733580939421,0.3748,3982.7,3982.5,0.4061]
[1733580939723,0.55037,3982.7,3982.6,0.17557]
[1733580940020,0.90782662,3982.9,3982.5,0.4061]
[1733580940322,0.17557,3982.8,3982.7,0.17557]
[1733580940920,0.17557,3982.8,3982.1,7.58811707]
[1733580940921,0.17558,3982.5,3982.1,3.2078]
[1733580941119,0.17558,3982.5,3982.4,0.57338]
[1733580941719,0.17558,3982.5,3982.4,0.3978]
[1733580943315,0.17558,3982.5,3982.4,0.57338]
[1733580944717,0.17558,3982.5,3982.4,0.3978]
[1733580946524,0.90782662,3982.6,3982.4,0.3978]
[1733580946718,3.897673,3983.5,3982.4,3.6056]
[1733580946914,0.17556,3982.9,3982.8,0.17556]
[1733580947517,0.90782662,3983.0,3982.9,0.17556]
[1733580947518,1.08338662,3983.0,3982.9,0.17556]
[1733580947820,4.09088599,3983.5,3983.4,0.17554]
[1733580947821,3.38334,3983.5,3983.4,0.17554]
[1733580948019,0.17554,3983.5,3983.4,0.17554]
[1733580948217,0.90782662,3983.5,3983.4,0.17554]
[1733580948721,0.675,3983.6,3983.5,0.17553]
[1733580948927,1.58282662,3983.6,3983.5,0.17553]
[1733580950124,1.58282662,3983.6,3983.4,3.2078]
[1733580950422,1.58282662,3983.6,3983.5,0.3993]
[1733580950718,0.90782662,3983.6,3983.5,0.3993]
[1733580951424,0.675,3983.8,3983.5,0.3993]
[1733580951425,1.58282662,3983.9,3983.5,0.3993]
[1733580951632,1.75834662,3983.9,3983.5,0.3993]
[1733580951818,1.58582662,3983.9,3983.5,4.34062707]
[1733580952129,1.58582662,3983.9,3983.6,3.94132707]
[1733580952518,1.58582662,3983.9,3983.5,6.48681063]
[1733580952519,1.58582662,3983.9,3983.5,4.34062707]
[1733580952720,1.58582662,3983.9,3983.6,3.94132707]
[1733580953220,0.1255083,3983.8,3983.5,4.34062707]
[1733580953414,0.1255083,3983.8,3983.5,4.51615707]
[1733580953619,0.1255083,3983.8,3983.6,0.17553]
[1733580953820,0.1255083,3983.8,3983.5,4.51615707]
[1733580954025,0.1255083,3983.8,3983.6,0.17553]
[1733580954621,0.1255083,3983.8,3983.5,4.51615707]
[1733580954827,0.1255083,3983.8,3983.5,4.34062707]
[1733580955731,0.1255083,3983.8,3983.5,4.51615707]
[1733580956025,0.1255083,3983.8,3983.6,3.94132707]
[1733580956727,0.1255083,3983.8,3983.6,4.11685707]
[1733580957116,0.1255083,3983.8,3983.7,0.17553]
[1733580957430,0.1255083,3983.8,3983.6,3.94132707]
[1733580957727,0.1255083,3983.8,3983.6,4.11685707]
[1733580958718,0.1255083,3983.8,3983.6,3.94132707]
[1733580959221,0.1255083,3983.8,3983.5,4.51615707]
[1733580959428,0.1255083,3983.8,3983.5,4.34062707]
[1733580959618,0.1255083,3983.8,3983.5,4.51615707]
[1733580959823,0.1255083,3983.8,3983.5,4.34062707]
[1733580960130,0.1255083,3983.8,3983.5,4.51615707]
[1733580960328,0.1255083,3983.8,3983.6,0.17553]
[1733580960826,0.1255083,3983.8,3983.5,4.51615707]
[1733580961025,0.1255083,3983.8,3983.5,4.34062707]
[1733580961228,0.1255083,3983.8,3983.5,4.51615707]
[1733580962527,0.1255083,3983.8,3983.7,0.17553]
[1733580963631,0.1255083,3983.8,3983.6,4.11685707]
[1733580963829,0.1255083,3983.8,3983.6,3.94132707]
[1733580964029,0.17553,3983.7,3983.6,3.94132707]
[1733580964234,1.03333492,3983.8,3983.5,0.3993]
[1733580964235,0.17553,3983.6,3983.5,0.3993]
[1733580964528,1.20885492,3983.8,3983.5,0.57483]
[1733580965231,0.12551145,3983.7,3983.5,0.3993]
[1733580965437,0.12551145,3983.7,3983.6,0.17553]
[1733580966636,0.30104145,3983.7,3983.6,0.17553]
[1733580966834,0.12551145,3983.7,3983.6,0.17553]
[1733580967436,0.30104145,3983.7,3983.6,0.17553]
[1733580967734,0.12551145,3983.7,3983.6,0.17553]
[1733580969433,0.12551145,3983.7,3983.6,12.4201498]
[1733580971039,0.12551145,3983.7,3983.6,5.40528479]
[1733580971439,0.12551145,3983.7,3983.6,1.46995662]
[1733580975541,0.12551145,3983.7,3983.6,1.08335662]
[1733580977740,0.90782662,3985.2,3984.3,0.1755]
[1733580977741,0.1755,3984.4,3984.3,0.1755]
[1733580978038,0.3975,3984.5,3984.4,0.1755]
[1733580978242,3.2078,3984.8,3984.7,0.17548]
[1733580979041,3.38328,3984.8,3984.7,0.17548]
[1733580980937,3.2078,3984.8,3984.7,0.17548]
[1733580981138,3.38328,3984.8,3984.7,0.17548]
[1733580982637,1.0619,3984.9,3984.6,0.3956]
[1733580982840,1.0619,3984.9,3984.8,0.17548]
[1733580983036,1.23737,3984.9,3984.8,0.17548]
[1733580983643,0.55937,3984.9,3984.8,0.17548]
[1733580983843,0.3839,3984.9,3984.8,0.17548]
[1733580984145,0.674,3985.3,3984.8,1.08330662]
[1733580984444,0.674,3985.3,3985.2,0.17546]
[1733580985238,0.84946,3985.3,3985.2,0.17546]
[1733580985439,0.674,3985.3,3985.2,0.17546]
[1733580985638,0.84946,3985.3,3985.2,0.17546]
[1733580986240,0.674,3985.3,3984.8,0.90782662]
[1733580986542,0.56096,3985.2,3985.1,0.17546]
[1733580987337,0.3855,3985.2,3985.1,0.17546]
[1733580987734,0.56096,3985.2,3985.1,0.17546]
[1733580990952,0.17547,3985.1,3985.0,0.17547]
[1733580991438,0.90782662,3985.3,3985.1,0.17547]
[1733580991750,0.84945,3985.4,3985.3,0.17546]
[1733580992149,0.84945,3985.4,3985.3,0.58966]
[1733580993247,0.17545,3985.4,3985.3,0.58966]
[1733580993746,0.674,3985.5,3985.4,0.17545]
[1733580993954,0.84945,3985.5,3985.4,0.17545]
[1733580994243,0.674,3985.5,3985.4,0.17545]
[1733580994445,0.4105,3985.6,3985.5,0.17545]
[1733580995245,0.17543,3985.9,3985.8,0.17543]
[1733580995542,1.23673,3985.9,3985.8,0.17543]
[1733580995744,0.17544,3985.8,3985.7,0.17543]
[1733580996053,1.23673,3985.9,3985.8,0.17543]
[1733580996957,1.0613,3985.9,3985.4,0.90782662]
[1733580997250,0.56273,3985.9,3985.8,0.17543]
[1733580997448,3.2078,3986.5,3986.2,0.17542]
[1733580997655,0.17542,3986.3,3986.2,0.17542]
[1733580998356,0.674,3986.4,3986.1,0.17542]
[1733580998357,0.17542,3986.2,3986.1,0.17542]
[1733580999554,5.17752662,3986.5,3986.0,0.381]
[1733580999756,0.17542,3986.1,3986.0,0.381]
[1733581000659,0.17544,3985.8,3985.7,0.17544]
[1733581001061,0.17544,3985.8,3985.6,3.2078]
[1733581001062,0.17544,3985.7,3985.6,3.38324]
[1733581001263,0.3787,3985.7,3985.6,3.38324]
[1733581002859,0.90782662,3986.2,3985.6,4.11562662]
[1733581003060,1.08324662,3986.2,3986.1,0.17542]
[1733581003559,1.0887,3986.4,3985.7,0.391]
[1733581003759,1.26411,3986.4,3986.3,0.17541]
[1733581004851,1.0887,3986.4,3985.7,0.391]
[1733581005252,0.17542,3986.2,3986.1,0.17542]
[1733581005455,1.0887,3986.4,3985.7,0.391]
[1733581005661,1.26411,3986.4,3986.3,0.17541]
[1733581006264,0.17541,3986.4,3986.3,0.17541]
[1733581006561,4.2868,3986.5,3985.9,0.90782662]
[1733581006761,4.2868,3986.5,3986.4,0.17541]
[1733581006762,4.46221,3986.5,3986.4,0.17541]
[1733581007553,0.17542,3986.3,3986.2,0.17541]
[1733581008463,4.2868,3986.5,3985.9,0.90782662]
[1733581008664,0.17541,3986.4,3986.3,0.17541]
[1733581008864,4.46221,3986.5,3986.4,0.17541]
[1733581009557,0.17541,3986.4,3986.3,0.17541]
[1733581011061,0.405,3986.5,3985.7,0.391]
[1733581011259,0.405,3986.5,3985.7,1.29882662]
[1733581011460,0.17541,3986.4,3986.3,0.17541]
[1733581014572,0.17542,3986.3,3986.2,0.17541]
[1733581014971,0.17541,3986.4,3986.3,0.17541]
[1733581018583,0.58041,3986.5,3986.4,0.17541]
[1733581026089,0.17541,3986.5,3986.4,0.17541]
[1733581026283,0.3762,3986.5,3986.4,0.17541]
[1733581026484,0.8464,3986.6,3986.5,0.1754]
[1733581026885,0.1754,3986.6,3986.5,0.1754]
[1733581028081,0.17541,3986.5,3986.4,0.17541]
[1733581028388,0.17541,3986.4,3986.3,0.17541]
[1733581029093,0.1754,3986.6,3986.5,0.1754]
[1733581029591,0.1754,3986.6,3986.3,3.93532817]
[1733581029592,0.8464,3986.7,3986.6,0.1754]
[1733581030689,0.671,3986.7,3986.3,4.32732817]
[1733581031010,0.671,3986.7,3986.3,3.93532817]
[1733581031011,0.17541,3986.4,3986.3,3.93532817]
[1733581031291,0.17542,3986.2,3986.1,3.2078]
[1733581032087,1.15132662,3986.3,3985.6,8.05095479]
[1733581032291,1.15132662,3986.3,3985.3,0.383]
[1733581032292,0.17544,3985.6,3985.5,4.11077817]
[1733581032687,0.17545,3985.5,3985.4,3.93532817]
[1733581032887,0.17545,3985.5,3985.4,4.51997817]
[1733581033188,0.17545,3985.5,3985.4,4.34452817]
[1733581033495,0.17545,3985.5,3985.4,0.4092]
[1733581033686,0.90782662,3986.0,3985.7,0.17544]
[1733581033891,0.17544,3985.7,3985.6,0.17544]
[1733581034095,0.17545,3985.5,3985.4,0.58465]
[1733581034594,0.17543,3985.9,3985.6,0.17544]
[1733581034791,0.17544,3985.7,3985.6,0.17544]
[1733581034986,0.17544,3985.8,3985.7,0.17543]
[1733581035289,0.17543,3985.9,3985.8,0.17543]
[1733581036397,0.17543,3985.9,3985.8,3.93532817]
[1733581037191,0.17543,3985.9,3985.8,4.11075817]
[1733581037391,0.17543,3985.9,3985.8,3.93532817]
[1733581038085,0.90782662,3986.0,3985.6,3.93532817]
[1733581038293,0.17545,3985.5,3985.4,0.4092]
[1733581040589,0.17545,3985.5,3985.4,0.58465]
[1733581041488,0.17545,3985.5,3985.4,0.4092]
[1733581042693,3.83155543,3985.7,3985.0,5.01862479]